Cogmind - Beta 13 @@@ ROGUE MODE // 2024.04.13 @ 17:38:01 Player: Vriska Result: Destroyed by ZK-FYA(R) with Subdweller Machine Gun Performance ------------- Evolutions (0) 0 Regions Visited (3) 600 Robots Destroyed (21) 105 Value Destroyed (465) 465 Prototype IDs (0) 0 Alien Tech Used (0) 0 Bonus (6) 6 TOTAL SCORE: 1176 Bonus ------- Follower Combat Kills 14 Friendly Fire -8 Cogmind --------- Core Integrity 0/250 Matter 290/300 Energy 200/200 System Corruption 0% Temperature Cool (0) Movement Rolling (110) Location -10/Subcaves Parts ------- > --- POWER (1) -------- Subdweller Power Source > --- PROPULSION (2) --- Subdweller Monowheel > --- UTILITY (2) ------ Small Storage Unit Signal Interpreter > --- WEAPON (2) ------- Field Laser Flak Cannon > --- INVENTORY (8) ---- Subdweller Optics Hardened Medium Armor Plating Hacking Suite Mining Laser Explosive Trap Peak State ------------ > --- POWER ------------ Ion Engine > --- PROPULSION ------- Aluminum Leg Carbon-fiber Leg > --- UTILITY ---------- Small Storage Unit Signal Interpreter > --- WEAPON ----------- Field Laser Flak Cannon > --- INVENTORY -------- Light Ion Engine Hardened Medium Armor Plating Hacking Suite Mining Laser Explosive Trap Explosive Trap Explosive Trap [Rating: 14] Favorites ----------- Power Light Ion Engine Engine Light Ion Engine Propulsion Aluminum Leg Treads Light Treads Leg Aluminum Leg Wheel Subdweller Monowheel Utility Small Storage Unit Device Improved Heat Sink Storage Small Storage Unit Processor Signal Interpreter Protection Improved Light Armor Plating Weapon EM Pulse Gun Energy Gun EM Pulse Gun Ballistic Cannon Flak Cannon Special Melee Weapon Datajack Build | -11 -10 -10 -10 ------- Run | Yrd Mat Min Sub Slots Evolved . | . . . . Power . | . . . . Propulsion . | . . . . Utility . | . . . . Weapon . | . . . . Parts Attached 26 | 8 8 4 6 Power 5 | 1 2 . 2 Engine 5 | 1 2 . 2 Core . | . . . . Reactor . | . . . . Propulsion 7 | 2 1 . 4 Treads 1 | . . . 1 Leg 5 | 2 1 . 2 Wheel 1 | . . . 1 Hover . | . . . . Flight . | . . . . Utility 5 | 2 1 2 . Device 1 | . 1 . . Storage 1 | 1 . . . Processor 1 | . . 1 . Hackware . | . . . . Protection 2 | 1 . 1 . Artifact . | . . . . Weapon 9 | 3 4 2 . Energy Gun 7 | 3 3 1 . Energy Cannon . | . . . . Ballistic Gun . | . . . . Ballistic Cannon 1 | . . 1 . Launcher . | . . . . Special Weapon . | . . . . Impact Weapon . | . . . . Slashing Weapon . | . . . . Piercing Weapon . | . . . . Special Melee Weapon 1 | . 1 . . Unidentified Prototypes . | . . . . Parts Lost 9 | . 5 1 3 Power 3 | . 1 . 2 Propulsion 2 | . . 1 1 Utility 1 | . 1 . . Weapon 3 | . 3 . . Highest Loss Streak 5 | . 5 1 2 To Critical Strikes . | . . . . Average Slot Usage (%) 94 | . 98 98 87 Engine 12 | . 13 14 10 Leg 23 | . 28 26 13 Wheel 1 | . . . 4 Device 4 | . 9 . . Storage 14 | . 14 14 14 Processor 6 | . . 9 14 Protection 2 | . 3 3 . Energy Gun 20 | . 27 14 14 Ballistic Cannon 7 | . . 13 14 Naked Turns . | . . . . Heaviest Build 27 | 15 16 27 19 Greatest Support 25 | 20 20 20 25 Greatest Overweight (x) 4 | 2 . 1 4 Average Overweight (x) . | . . . . Largest Inventory Capacity 8 | 8 8 8 8 Average Capacity 7 | 7 8 8 8 Most Carried 7 | 4 4 7 7 Average Carried 3 | 2 3 6 5 Final Capacity 8 | 8 8 8 8 Final Carried 7 | 4 4 7 5 Class Distribution -------------------- 91% | Mutant 8% | Scavenger-Mutant Dominant Class ---------------- Mutant | -10/Materials Mutant | -10/Mines Mutant | -10/Subcaves Resources | -11 -10 -10 -10 ----------- Run | Yrd Mat Min Sub Matter Collected 562 | 280 68 53 161 Remotely . | . . . . Salvage Created 609 | 134 337 . 138 Parts 43 | . 31 1 11 Haulers Intercepted . | . . . . Recyclers Shooed . | . . . . Parts Field Recycled . | . . . . Retrieved Matter . | . . . . Parts Self-Destructed 14 | . . . 14 Prevented . | . . . . Kills | -11 -10 -10 -10 ------- Run | Yrd Mat Min Sub Combat Hostiles Destroyed 25 | 9 7 1 8 Guns 19 | 9 7 . 3 Cannons 6 | . . 1 5 Classes Destroyed 7 | 1 5 . 1 Builder 1 | . 1 . . Operator 1 | . 1 . . Watcher 3 | . 3 . . Swarmer 8 | . 3 1 4 Grunt 5 | . 4 . 1 Subdweller 3 | . . . 3 Assembled 9 | 9 . . . Best Kill Streak 4 | 4 4 1 2 Combat Bots Only 4 | 4 3 1 2 Max Kills in Single Turn 2 | 2 2 1 1 Gunslinging 1 | 1 1 . . Exploded . | . . . . Melee . | . . . . Uniques/NPCs Destroyed . | . . . . Combat | -11 -10 -10 -10 -------- Run | Yrd Mat Min Sub Hostile Shots Fired 171 | 27 62 14 68 Missed 74 | 11 28 6 29 Damage Taken 1157 | 233 417 65 442 Core 260 | 77 97 15 71 Absorbed by Shields . | . . . . Core Remaining (%) 69 | 69 . . . Volleys Fired 94 | 21 49 3 21 Largest 2 | 2 2 2 2 Hottest 115 | 80 115 107 107 Shots Fired 175 | 42 85 6 42 Gun 151 | 42 85 3 21 Cannon 24 | . . 3 21 Launcher . | . . . . Special . | . . . . Kinetic 24 | . . 3 21 Thermal 65 | . 41 3 21 Explosive . | . . . . Electromagnetic 86 | 42 44 . . Robot Hit Streak 11 | 5 11 2 6 Robot Miss Streak 12 | 4 6 7 12 Penetration Max . | . . . . Secondary Targets 3 | 1 2 . . Max Gunslinging Chain 1 | 1 1 . . Shots Hit Robots 100 | 23 50 3 24 Core Hits 58 | 16 20 2 20 Critical Kills . | . . . . Critical Parts Destroyed . | . . . . Critical Strikes 8 | 1 6 . 1 Burn 5 | . 4 . 1 Corrupt 3 | 1 2 . . Melee Attacks 3 | . 3 . . Impact . | . . . . Slashing . | . . . . Piercing . | . . . . Sneak Attacks . | . . . . Combat Hostiles . | . . . . Follow-up Attacks . | . . . . Damage Inflicted 1395 | 265 686 48 396 Guns 1089 | 265 668 . 156 Cannons 288 | . . 48 240 Explosions . | . . . . Melee . | . . . . Ramming 18 | . 18 . . Kinetic 288 | . . 48 240 Thermal 448 | . 292 . 156 Explosive . | . . . . Electromagnetic 641 | 265 376 . . Impact . | . . . . Slashing . | . . . . Piercing . | . . . . Highest Corruption . | . . . . Average Corruption . | . . . . Corruption Purged . | . . . . Corruption Blocked . | . . . . Overload Shots . | . . . . Overflow Damage . | . . . . Projectiles . | . . . . Explosions . | . . . . Melee . | . . . . Knockbacks 7 | . . . 7 Impact . | . . . . Kinetic 7 | . . . 7 Secondary . | . . . . Self-Inflicted Damage . | . . . . Shots . | . . . . Rammed . | . . . . Targets Rammed 3 | . 3 . . Kicked 3 | . 3 . . Crushed . | . . . . Highest Temperature 246 | 148 246 52 7 Average Temperature 76 | 67 88 27 3 Received Heat Transfer 362 | 80 204 . 78 Effects 3 | . 3 . . Interference 3 | . 3 . . Siege Activations . | . . . . Robots Corrupted . | . . . . Combat Hostiles . | . . . . Parts Fried 2 | . 2 . . Impact Corruptions . | . . . . Robots Melted . | . . . . Combat Hostiles . | . . . . Parts Melted 4 | . 2 . 2 Heat Transferred 1517 | . 1110 . 407 Parts Sabotaged . | . . . . Parts Stolen . | . . . . Parts Stripped . | . . . . Power Chain Reactions . | . . . . Alert | -11 -10 -10 -10 ------- Run | Yrd Mat Min Sub Peak Influence 169 | 15 169 56 . Initial 2 | . . 2 . Average 7 | 2 24 6 . Maximum Alert Level . | . . . . Low Security (%) 100 | 100 100 100 . Level 1 . | . . . . Level 2 . | . . . . Level 3 . | . . . . Level 4 . | . . . . Level 5 . | . . . . High Security . | . . . . Max Security . | . . . . Squads Dispatched 3 | . 2 1 . Investigation 2 | . 1 1 . Extermination . | . . . . Reinforcement 1 | . 1 . . Assault . | . . . . Garrison . | . . . . Intercept . | . . . . Searches Triggered . | . . . . Construction Impeded . | . . . . Haulers Reinforced . | . . . . Active Scanning Responses . | . . . . Cargo Convoy Interrupts . | . . . . Stealth | -11 -10 -10 -10 --------- Run | Yrd Mat Min Sub Distress Signals 1 | . 1 . . Communications Jammed . | . . . . Distress Signals . | . . . . Times Spotted 40 | 10 16 3 11 Peak Tracking Total 6 | 4 5 3 6 Tactical Retreats 2 | 1 . . 1 Traps | -11 -10 -10 -10 ------- Run | Yrd Mat Min Sub Traps Triggered 1 | . 1 . . Indirectly . | . . . . Trap Hack Attempts . | . . . . Triggered . | . . . . Disarmed . | . . . . Reprogrammed . | . . . . Reused 3 | . . . 3 Traps Extracted . | . . . . Installed 3 | . . . 3 Triggered 1 | . . . 1 Most Traps Carried 3 | . . 3 3 Machines | -11 -10 -10 -10 ---------- Run | Yrd Mat Min Sub Machines Disabled . | . . . . Max in Single Turn . | . . . . Machines Repaired . | . . . . Machines Dismantled . | . . . . Machines Sabotaged . | . . . . Overloaded Fab Kills . | . . . . Hacking | -11 -10 -10 -10 --------- Run | Yrd Mat Min Sub Machines Accessed 1 | . . 1 . Terminals . | . . . . Fabricators . | . . . . Repair Stations . | . . . . Recycling Units . | . . . . Scanalyzers . | . . . . Garrison Access . | . . . . Total Hacks 1 | . . 1 . Successful 1 | . . 1 . Failed . | . . . . Catastrophic . | . . . . Database Lockouts . | . . . . Manual 4 | . 4 . . Terminals . | . . . . Fabricators . | . . . . Repair Stations . | . . . . Recycling Units . | . . . . Scanalyzers . | . . . . Garrison Access . | . . . . Terminal Hacks 1 | . . 1 . Open Door 1 | . . 1 . Fabricator Hacks . | . . . . Repair Station Hacks . | . . . . Recycling Unit Hacks . | . . . . Scanalyzer . | . . . . Garrison Access Hacks . | . . . . Unauthorized Hacks . | . . . . Terminals . | . . . . Fabricators . | . . . . Repair Stations . | . . . . Recycling Units . | . . . . Scanalyzers . | . . . . Garrison Access . | . . . . Data Cores Recovered . | . . . . Used . | . . . . Hacking Detections 1 | . 1 . . Full Trace Events 1 | . 1 . . Feedback Events . | . . . . Feedback Blocked . | . . . . Robot Schematics Acquired . | . . . . Robots Built . | . . . . Authchips . | . . . . Time . | . . . . Total Robot Build Rating . | . . . . Part Schematics Acquired . | . . . . Parts Built . | . . . . Authchips . | . . . . Time . | . . . . Total Part Build Rating . | . . . . Parts Repaired . | . . . . Time . | . . . . Parts Recycled . | . . . . Recycled Matter . | . . . . Retrieved Matter . | . . . . Retrieved Components . | . . . . Parts Scanalyzed . | . . . . Part Schematics Acquired . | . . . . Parts Damaged . | . . . . Bothacking | -11 -10 -10 -10 ------------ Run | Yrd Mat Min Sub Used RIF Installer . | . . . . Robots Hacked 2 | . 2 . . Non-combat . | . . . . Combat 2 | . 2 . . Robot Hacks Applied 2 | . 2 . . parse_system 2 | . 2 . . Relay Couplers Released . | . . . . Fabnet Peak Effective % . | . . . . Robots Rewired . | . . . . Allies Hacked . | . . . . Hacks Repelled . | . . . . Allies | -11 -10 -10 -10 -------- Run | Yrd Mat Min Sub Total Allies 2 | . . 2 . Largest Group 2 | . . 2 1 Highest-Rated Group 50 | . . 50 31 Highest-Rated Ally 31 | . . 31 31 Total Orders . | . . . . Ally Attacks 11 | . . 4 7 Total Damage 85 | . . 42 43 Kills 2 | . . 1 1 Allies Corrupted . | . . . . Allies Melted . | . . . . Intel | -11 -10 -10 -10 ------- Run | Yrd Mat Min Sub Robot Analysis Total . | . . . . Derelict Logs Recovered 1 | . . 1 . Drone Launches . | . . . . Drone Recoveries . | . . . . Exploration | -11 -10 -10 -10 ------------- Run | Yrd Mat Min Sub Turns Passed 6115 | 3745 1031 564 775 Spaces Moved 3173 | 1508 709 392 564 Core 22 | 16 . . 6 Treads 30 | . . . 30 Legs 2874 | 1492 709 392 281 Wheels 247 | . . . 247 Hover . | . . . . Flight . | . . . . Fastest Speed 50 | 50 120 120 110 Average Speed 122 | 119 120 139 120 Slowest Speed 250 | 190 120 190 250 Overloaded Moves . | . . . . Propulsion Burnouts . | . . . . Robots Hopped . | . . . . Cave-ins Triggered . | . . . . Exploration Rate (%) 62 | 83 69 65 32 Regions Visited 3 Branch Regions 2 Pre-discovered Areas . | . . . . Known Exits Taken 1 | . . 1 . Unknown Exits Taken 2 | 1 1 . . Scrap Searched . | . . . . Spaces Dug . | . . . . Terrain Destroyed . | . . . . Melee . | . . . . Projectile . | . . . . AOE . | . . . . Terrain Rammed . | . . . . Walls Destroyed . | . . . . Machines Disabled . | . . . . Actions | -11 -10 -10 -10 --------- Run | Yrd Mat Min Sub Total 5220 | 3401 800 404 615 Wait 1898 | 1860 25 . 13 Move 3170 | 1507 708 391 564 Hop . | . . . . Pick Up 12 | 5 2 3 2 Fast Attach 19 | 6 5 3 5 Attach 4 | 1 2 . 1 Detach . | . . . . Swap 3 | 1 1 1 . Drop 11 | . 2 3 6 Fire 94 | 21 49 3 21 Melee 3 | . 3 . . Ram . | . . . . Kick 3 | . 3 . . Crush . | . . . . Escape Stasis . | . . . . Rewire . | . . . . Trap 3 | . . . 3 Miscellaneous . | . . . . Route ------- -11/Scrapyard -10/Materials (discovered 4 exits: *Mat x3 / *Min) -10/Mines (discovered 3 exits: *Mat x2 / *Sub) -10/Subcaves (discovered 1 exit: *Mat) History --------- Turn | Location | Event 12 | -11/Scrapyard | Discovered new exit (range 13) 1748 | -11/Scrapyard | Assembled infested the area 3746 | -11/Scrapyard | Entered Materials 3747 | -10/Materials | Build established: Mutant 4000 | -10/Materials | Core integrity fell below 50% 4024 | -10/Materials | Discovered new exit (range 7) 4051 | -10/Materials | Lost 5 parts (1p1u3w) 4216 | -10/Materials | Discovered new exit (range 3) 4317 | -10/Materials | Discovered new exit (range 11) 4414 | -10/Materials | Discovered new exit (range 5) 4777 | -10/Materials | Entered Mines 4790 | -10/Mines | Met a Derelict shopkeep closing up shop 4874 | -10/Mines | Discovered new exit (range 15) 4885 | -10/Mines | Found a hidden stash of uninstalled traps 4990 | -10/Mines | Identified exit to Materials 5097 | -10/Mines | Learned Materials stockpile data 5218 | -10/Mines | Discovered exit to Materials (range 8) 5297 | -10/Mines | Discovered new exit (range 10) 5337 | -10/Mines | Identified exit to Subcaves 5341 | -10/Mines | Entered Subcaves 5341 | -10/Subcaves | Accompanied by 1 ally 5346 | -10/Subcaves | Led the pair of lost Derelicts to an unsafe place 5471 | -10/Subcaves | Core integrity fell below 20% 5641 | -10/Subcaves | Discovered new exit (range 6) 5647 | -10/Subcaves | Identified exit to Materials 6020 | -10/Subcaves | Shifting Twisted Machinery released Sub. Power Source 6066 | -10/Subcaves | Shifting Twisted Machinery released Sub. Power Source 6078 | -10/Subcaves | Shifting Twisted Machinery released Sub. Optics 6116 | -10/Subcaves | Destroyed by ZK-FYA(R) with Subdweller Machine Gun Last Messages --------------- WR-FBG(R) knocked back. WR-FBG(R) triggered Explosive Trap. An explosion rips through the floor. TT-JQP(R) knocked back. WR-FBG(R) knocked back. TT-JQP(R) knocked back. WR-FBG(R) knocked back. Lgt. Treads destroyed. WR-FBG(R) destroyed. Lgt. Ion Engine destroyed. TT-JQP(R) destroyed. Acquired Sub. Monowheel. Acquired 25 matter. Acquired 15 matter. The unstable cave ceiling collapses. Sub. Power Source falls loose from the Twisted Machinery. Acquired Sub. Power Source. Sub. Power Source falls loose from the Twisted Machinery. Sub. Optics falls loose from the Twisted Machinery. Acquired Sub. Optics. Map ----- +----------------------------------------------------+ | ?????????????????????????????????????????????????? | | ?????????????????????????????????????????????????? | | ?????????????????????????????????????????????????? | | ?????????????????????????????????????????????????? | | ?????????????????????????????????????????????????? | | ?????????????????????????????????????????????????? | | ?????????????????????????????????????????????????? | | ?????????????????????????????????????????????????? | | ?????????????????????????????????????????????????? | | ?????????????????????????????????????????????????? | | ?????????????????????????????????????????????????? | | ?????????????????????????????????????????????????? | | ?????????????????????????????????????????????????? | | ?????????????????????????????????????????????????? | | ?????????????????????????????????????????????????? | | ?????????????????????????????????????????????????? | | ????????#?###????????????????????????????????????? | | ?????????"# ???????????????????????????????????? | | ?????????? #??????????????????????????????????? | | ??????????## "????????????????????????####??????? | | ????????###" <#######????????????????## #??????? | | ????# ### R ## ####????????????## ##?????? | | ????# #####???????## #?##### | | ????# ######?## ### ## | | ???# ## ### ## | | ????# ## @ ### ## | | ????## ### #### ### ## | | ??????????# #??## | | ??????????# ???# "" | | ????????? ???## ### ### | | ??????? #????# ###" ##?# | | ?????? ##????#" ##"" #??### | | ?????## ??????#######"" ####?# | | ??????## ???????????##"" #?? | | ???????# ???????????# "" ##?? | | ???????## ##??????????#" "## #??? | | ????????## ????????????##" "?## ##?? | | ?????????## ???????????? *""#??### #?? | | ???????????? ????????????" " "?????# ## #?? | | ?????????????????????????"##???????# ###### ##?? | | ???????????????????????????????????###????#####??? | | ?????????????????????????????????????????????????? | | ?????????????????????????????????????????????????? | | ?????????????????????????????????????????????????? | | ?????????????????????????????????????????????????? | | ?????????????????????????????????????????????????? | | ?????????????????????????????????????????????????? | | ?????????????????????????????????????????????????? | | ?????????????????????????????????????????????????? | | ?????????????????????????????????????????????????? | +----------------------------------------------------+ Best States ------------- Heat Dissipation 39 Energy Generation 15 Energy Capacity 250 Matter Stores 300 Matter Capacity 300 Sight Range 16 Terrain Scan Density 10 Armor Coverage 225 Evasion (%) 55 Recoil Reduction 1 Item Schematics ----------------- None Robot Schematics ------------------ None Fabricated ------------ Nothing Alien Tech Used ----------------- None Achievements -------------- None Challenges ------------ None Game ------ Seed StealthMicroShielding Manual? 0 Play Time 00:27:17 Cumulative 14.6 hours Start 2024.04.12 @ 13:18:20 End 2024.04.13 @ 17:38:01 Sessions 3 Manual Loads 0 Difficulty Rogue Special Mode None Game No. 30 Rogue 30 Adventurer 0 Explorer 0 Win Type - Total 0 Types 0/0/0/0/0/0/0/0/0 Lore% 20 Gallery% 20 Achievement% 19 Wizard Run 0 Options --------- Layout 0 ASCII 0 Keyboard 0 Movement Arrows Keybinds 0 Fullscreen 1 Font 18/SmallcapsGlow Map View 76x50 Zoom Use 0% Tactical HUD 0 Map Filters NONE Filters NONE Steam 1 RUN: 1eeb76f7-819c-46c4-b887-27aaaac749b2